bitfinex/quotes_BTCUSD_20241206
["timestamp","ask_amount","ask_price","bid_price","bid_amount"]
[1733459732122,0.10830313,97880.0,97851.0,0.09106415]
[1733459732331,0.10830313,97880.0,97845.0,0.1821283]
[1733459732332,0.0779,97879.0,97855.0,0.05]
[1733459732575,0.0779,97879.0,97853.0,0.15]
[1733459732791,0.10503154,97878.0,97855.0,0.05]
[1733459733213,0.204372,97861.0,97855.0,0.05]
[1733459733639,0.204381,97857.0,97855.0,0.05]
[1733459734979,0.20435,97872.0,97855.0,0.05]
[1733459735212,0.0008632,97860.0,97855.0,0.05]
[1733459735426,0.204375,97859.0,97855.0,0.05]
[1733459736308,0.408751,97859.0,97855.0,0.05]
[1733459737395,0.408751,97859.0,97847.0,0.15]
[1733459737396,0.409751,97859.0,97846.0,0.0756]
[1733459737642,0.204377,97858.0,97855.0,0.05]
[1733459737854,0.001,97859.0,97856.0,0.15]
[1733459738715,0.0008632,97860.0,97856.0,0.15]
[1733459738930,0.001,97858.0,97856.0,0.15]
[1733459739367,0.001,97858.0,97857.0,0.10503154]
[1733459739802,0.0008632,97860.0,97857.0,0.10503154]
[1733459740060,0.0018632,97860.0,97857.0,0.10503154]
[1733459740291,0.2002132,97872.0,97857.0,0.10503154]
[1733459740725,0.001,97858.0,97857.0,0.10503154]
[1733459741771,0.001,97858.0,97855.0,0.05]
[1733459741976,0.204368,97863.0,97856.0,0.10503154]
[1733459742178,0.001,97860.0,97856.0,0.10503154]
[1733459742581,0.204368,97863.0,97856.0,0.10503154]
[1733459742706,0.001,97858.0,97856.0,0.10503154]
[1733459743819,0.204357,97868.0,97856.0,0.10503154]
[1733459744298,0.408714,97868.0,97856.0,0.10503154]
[1733459744543,0.204367,97863.0,97856.0,0.10503154]
[1733459745808,0.001,97858.0,97856.0,0.10503154]
[1733459746018,0.204367,97863.0,97856.0,0.10503154]
[1733459746228,0.204347,97873.0,97856.0,0.10503154]
[1733459746441,0.001,97863.0,97856.0,0.10503154]
[1733459747084,0.204347,97873.0,97856.0,0.10503154]
[1733459747525,0.001,97873.0,97859.0,0.05]
[1733459747751,0.001,97873.0,97860.0,0.10503154]
[1733459748376,0.204348,97872.0,97860.0,0.10503154]
[1733459748583,0.204358,97868.0,97860.0,0.10503154]
[1733459749029,0.204348,97872.0,97860.0,0.10503154]
[1733459749236,0.001,97863.0,97860.0,0.10503154]
[1733459749447,0.204348,97872.0,97860.0,0.10503154]
[1733459749669,0.20436,97867.0,97860.0,0.10503154]
[1733459751143,0.001,97872.0,97860.0,0.10503154]
[1733459751390,0.001,97872.0,97859.0,0.00996]
[1733459751645,0.204367,97863.0,97859.0,0.00996]
[1733459752266,0.204367,97863.0,97859.0,0.05996]
[1733459752482,0.204367,97863.0,97859.0,0.00996]
[1733459752927,0.205367,97863.0,97859.0,0.00996]
[1733459755270,0.409736,97863.0,97859.0,0.00996]
[1733459755515,0.001,97863.0,97859.0,0.11499154]
[1733459756568,0.001,97863.0,97859.0,0.12499154]
[1733459756992,0.001,97863.0,97860.0,0.10503154]
[1733459757197,0.001,97863.0,97861.0,0.081]
[1733459757401,0.001,97863.0,97862.0,0.10503154]
[1733459758283,0.204346,97874.0,97862.0,0.10503154]
[1733459758509,0.001,97863.0,97862.0,0.10503154]
[1733459758728,0.001,97863.0,97862.0,0.15323154]
[1733459759401,0.0001743,97874.0,97862.0,0.15323154]
[1733459759610,0.0011743,97874.0,97862.0,0.15323154]
[1733459759818,0.0001743,97874.0,97862.0,0.24433279]
[1733459760026,0.0001743,97874.0,97862.0,0.15323154]
[1733459760198,0.001,97863.0,97862.0,0.30323154]
[1733459760411,0.001,97863.0,97862.0,0.39433279]
[1733459761198,0.001,97863.0,97862.0,0.40433279]
[1733459761410,0.0001743,97874.0,97862.0,0.31323154]
[1733459761610,0.0011743,97874.0,97863.0,0.09115583]
[1733459761806,0.0011743,97874.0,97864.0,0.10503154]
[1733459762452,0.0001743,97874.0,97864.0,0.19618737]
[1733459762664,0.0001743,97874.0,97866.0,0.05]
[1733459763044,0.0011743,97874.0,97873.0,0.131]
[1733459763255,0.0011743,97874.0,97873.0,0.38603154]
[1733459763394,0.0011743,97874.0,97871.0,0.13673374]
[1733459763598,0.0011743,97874.0,97871.0,0.13669487]
[1733459763856,0.0011743,97874.0,97866.0,0.22788958]
[1733459763857,0.0011743,97874.0,97869.0,0.09113836]
[1733459764048,0.408692,97873.0,97866.0,0.09113836]
[1733459764257,0.204346,97873.0,97868.0,0.09113836]
[1733459764496,0.0011743,97874.0,97869.0,0.09113836]
[1733459764713,0.204358,97867.0,97866.0,0.09113836]
[1733459764921,0.204358,97867.0,97863.0,0.09113836]
[1733459765127,0.204358,97867.0,97861.0,0.09118537]
[1733459765353,0.204358,97867.0,97859.0,0.02996]
[1733459765354,0.408717,97867.0,97859.0,0.02996]
[1733459766019,0.10503154,97866.0,97859.0,0.02996]
[1733459766248,0.204367,97863.0,97859.0,0.02996]
[1733459766481,0.30939854,97863.0,97859.0,0.02996]
[1733459768040,0.31039854,97863.0,97859.0,0.02996]
[1733459768729,0.31139854,97863.0,97859.0,0.02996]
[1733459771108,0.31139854,97863.0,97862.0,0.02]
[1733459771550,0.206367,97863.0,97862.0,0.02]
[1733459772474,0.204367,97863.0,97862.0,0.02]
[1733459772692,0.205367,97863.0,97862.0,0.02]
[1733459772911,0.1376687,97863.0,97862.0,0.02]
[1733459773144,0.001,97863.0,97862.0,0.02]
[1733459774069,0.204363,97865.0,97862.0,0.02]
[1733459774278,0.204367,97863.0,97862.0,0.02]
[1733459774481,0.205367,97863.0,97862.0,0.02]
[1733459774689,0.204367,97863.0,97862.0,0.02]
[1733459775134,0.205367,97863.0,97862.0,0.02]
[1733459778685,0.185367,97863.0,97862.0,0.03]
[1733459779292,0.47920734,97863.0,97862.0,0.03]
[1733459779505,0.41979854,97863.0,97862.0,0.03]
[1733459779968,0.41979854,97863.0,97862.0,0.009563]
[1733459779969,0.44064991,97863.0,97862.0,0.009563]
[1733459780158,0.49064991,97863.0,97862.0,1e-06]
[1733459780329,0.69501691,97863.0,97860.0,4e-07]
[1733459780543,0.204371,97861.0,97860.0,4e-07]
[1733459780712,0.30940254,97861.0,97860.0,4e-07]
[1733459781995,0.30940254,97861.0,97856.0,0.01]
[1733459781996,0.204379,97857.0,97856.0,4e-07]
[1733459782192,0.30941054,97857.0,97856.0,4e-07]
[1733459783049,0.30941054,97857.0,97850.0,0.0017304]
[1733459783050,0.204392,97851.0,97850.0,8e-07]
[1733459783257,0.30942354,97851.0,97850.0,8e-07]
[1733459783492,0.37409469,97851.0,97850.0,8e-07]
[1733459784980,0.37509469,97851.0,97850.0,8e-07]
[1733459785398,0.31042354,97851.0,97850.0,8e-07]
[1733459788344,0.36042354,97851.0,97850.0,8e-07]
[1733459789840,0.31042354,97851.0,97850.0,8e-07]
[1733459790046,0.36042354,97851.0,97850.0,8e-07]
[1733459790247,0.31042354,97851.0,97850.0,8e-07]
[1733459791336,0.205392,97851.0,97850.0,8e-07]
[1733459792824,0.204392,97851.0,97850.0,8e-07]
[1733459804482,0.204388,97853.0,97850.0,8e-07]
[1733459804483,0.204389,97853.0,97850.0,8e-07]
[1733459804683,0.408778,97853.0,97850.0,8e-07]
[1733459813926,0.47018043,97853.0,97850.0,8e-07]
[1733459814341,0.408778,97853.0,97850.0,8e-07]
[1733459819428,0.408778,97853.0,97850.0,1.0000008]
[1733459821687,0.204392,97851.0,97850.0,1.0000008]
[1733459821897,0.30942354,97851.0,97850.0,1.0000008]
[1733459824124,0.204392,97851.0,97850.0,1.0000008]
[1733459834653,0.0008653,97860.0,97850.0,1.0000008]
[1733459834900,0.0008653,97860.0,97850.0,1.0500008]
[1733459835125,0.0008653,97860.0,97855.0,0.09115538]
[1733459835345,0.0008653,97860.0,97856.0,0.09115538]
[1733459835588,0.0008653,97860.0,97859.0,0.05]
[1733459835834,0.0008653,97860.0,97859.0,0.84401719]
[1733459836061,0.0008653,97860.0,97859.0,0.55311854]
[1733459837030,0.0008653,97870.0,97862.0,0.023]
[1733459837278,0.0008653,97870.0,97869.0,0.35508357]
[1733459837493,0.0008653,97870.0,97869.0,0.64572861]
[1733459837942,0.0008653,97870.0,97869.0,0.26391175]
[1733459838375,0.0008653,97870.0,97869.0,0.1273]
[1733459838597,0.0008653,97870.0,97869.0,0.21834046]
[1733459838825,0.0008653,97870.0,97869.0,0.1273]
[1733459839083,0.0008653,97870.0,97869.0,0.1766]
[1733459839579,0.0008653,97870.0,97862.0,0.15]
[1733459839580,0.10299445,97869.0,97853.0,0.11617475]
[1733459839821,0.204388,97853.0,97850.0,8e-07]
[1733459840060,0.30941954,97853.0,97850.0,8e-07]
[1733459840277,0.204392,97851.0,97850.0,8e-07]
[1733459845734,0.0008653,97870.0,97855.0,0.05]
[1733459845950,0.204354,97869.0,97863.0,0.05]
[1733459846407,0.0008653,97870.0,97863.0,0.05]
[1733459848206,0.204356,97868.0,97863.0,0.05]
[1733459849132,0.408713,97868.0,97863.0,0.05]
[1733459849831,0.0008653,97870.0,97863.0,0.05]
[1733459850058,0.0008653,97870.0,97864.0,0.12803154]
[1733459850277,0.0008653,97870.0,97869.0,0.05]
[1733459856538,0.0008653,97870.0,97869.0,0.05]
[1733459858238,0.2052173,97870.0,97869.0,0.05]
[1733459859029,0.204357,97868.0,97865.0,0.1273]
[1733459859359,0.2052173,97870.0,97854.0,0.09093576]
[1733459859360,0.204379,97858.0,97857.0,0.05]
[1733459860192,0.204379,97858.0,97854.0,0.0763]
[1733459860193,0.408758,97858.0,97854.0,0.0763]
[1733459860337,0.408758,97858.0,97853.0,0.05]
[1733459860535,0.204382,97856.0,97850.0,0.0493008]
[1733459860741,0.204392,97851.0,97850.0,0.0993008]
[1733459861337,0.204392,97851.0,97850.0,8e-07]
[1733459861742,0.0008653,97870.0,97869.0,0.05]
[1733459861947,0.0008653,97870.0,97859.0,0.05]
[1733459861948,0.204363,97865.0,97859.0,0.05]
[1733459862159,0.204363,97865.0,97864.0,0.05]
[1733459862397,0.0008653,97870.0,97854.0,0.09093576]
[1733459862398,0.204369,97862.0,97859.0,0.05]
[1733459862606,0.204354,97869.0,97857.0,0.05]
[1733459862815,0.204373,97860.0,97857.0,0.05]
[1733459863027,0.204373,97860.0,97859.0,0.05]
[1733459865214,0.204373,97860.0,97857.0,0.05]
[1733459865429,0.204373,97860.0,97859.0,0.05]
[1733459867259,0.408713,97868.0,97864.0,0.05]
[1733459867812,0.204356,97868.0,97867.0,0.05]
[1733459870118,0.204356,97868.0,97860.0,0.24093576]
[1733459870119,0.0008653,97870.0,97868.0,0.05]
[1733459870772,0.0008653,97870.0,97869.0,0.1298]
[1733459876908,0.0008653,97870.0,97869.0,0.05]
[1733459877350,0.0008653,97870.0,97868.0,0.05]
[1733459877351,0.204354,97869.0,97868.0,0.05]
[1733459878909,0.204354,97869.0,97860.0,0.0017306]
[1733459878910,0.06140886,97869.0,97860.0,0.0017306]
[1733459879125,0.204371,97861.0,97860.0,0.0017306]
[1733459879554,0.204359,97867.0,97860.0,0.0017306]
[1733459879555,0.408718,97867.0,97860.0,0.0017306]
[1733459879775,0.408218,97867.0,97863.0,0.05]
[1733459879977,0.203859,97867.0,97863.0,0.05]
[1733459881073,0.204366,97864.0,97863.0,0.05]
[1733459881282,0.204366,97864.0,97860.0,0.0017306]
[1733459881500,0.204366,97864.0,97863.0,0.05]
[1733459882144,0.204366,97864.0,97860.0,0.0017306]
[1733459882393,0.408732,97864.0,97860.0,0.0017306]
[1733459883049,0.58876354,97864.0,97860.0,0.0017306]
[1733459885225,0.58876354,97864.0,97860.0,0.0019306]
[1733459886286,0.204369,97862.0,97860.0,0.0019306]
[1733459892873,0.204354,97869.0,97861.0,0.05]
[1733459893105,0.20435,97872.0,97869.0,0.05]
[1733459893849,0.20435,97872.0,97864.0,0.05]
[1733459893850,0.40871,97869.0,97864.0,0.05]
[1733459894062,0.204367,97863.0,97862.0,0.09112634]
[1733459894258,0.204367,97863.0,97862.0,0.05]
[1733459895083,0.408734,97863.0,97862.0,0.05]
[1733459898235,0.408734,97863.0,97862.0,0.04811676]
[1733459898457,0.204367,97863.0,97862.0,0.04811676]
[1733459898678,0.204354,97869.0,97868.0,0.04811676]
[1733459899732,0.204354,97869.0,97867.0,0.04811676]
[1733459899880,0.204354,97869.0,97868.0,0.04811676]
[1733459900313,0.204354,97869.0,97868.0,0.1392431]
[1733459900529,0.204354,97869.0,97868.0,0.04811676]
[1733459903437,0.204354,97869.0,97867.0,0.1392431]
[1733459903657,0.204354,97869.0,97868.0,0.1392431]
[1733459906550,0.204354,97869.0,97868.0,0.04811676]
[1733459908088,0.0008653,97870.0,97869.0,0.04811676]
[1733459908921,0.0008653,97870.0,97869.0,0.1392431]
[1733459909614,0.0008653,97870.0,97869.0,0.04811676]
[1733459910362,0.0008653,97870.0,97869.0,0.13926527]
[1733459910563,0.0008653,97870.0,97869.0,0.04811676]
[1733459911541,0.0008653,97870.0,97869.0,0.13925701]
[1733459911756,0.0008653,97870.0,97869.0,0.04811676]
[1733459912380,0.0008653,97870.0,97869.0,0.13925787]
[1733459916917,0.0008653,97870.0,97869.0,0.04811676]
[1733459918892,0.0008653,97870.0,97869.0,0.12351676]
[1733459919350,0.0008653,97870.0,97869.0,0.26020627]
[1733459919574,0.0008653,97870.0,97869.0,0.12351676]
[1733459921385,0.0008653,97870.0,97869.0,0.13926956]
[1733459921605,0.0008653,97870.0,97869.0,0.04811676]
[1733459926436,0.408708,97869.0,97868.0,0.04811676]
[1733459926691,0.204354,97869.0,97868.0,0.04811676]
[1733459927360,0.408709,97869.0,97868.0,0.04811676]
[1733459927565,0.204354,97869.0,97868.0,0.04811676]
[1733459928633,0.204365,97864.0,97863.0,0.13928607]
[1733459928835,0.204365,97864.0,97863.0,0.04811676]
[1733459930132,0.204365,97864.0,97863.0,0.13928607]
[1733459930341,0.204365,97864.0,97863.0,0.13927609]
[1733459931457,0.204365,97864.0,97863.0,0.04811676]
[1733459932549,0.204365,97864.0,97863.0,0.52150751]
[1733459932777,0.204365,97864.0,97863.0,0.18487072]
[1733459933234,0.204365,97864.0,97863.0,0.04811676]
[1733459933700,0.204365,97864.0,97863.0,0.38484571]
[1733459933904,0.204365,97864.0,97863.0,0.04811676]
[1733459934337,0.204365,97864.0,97863.0,0.1849518]
[1733459934565,0.204365,97864.0,97863.0,0.38491563]
[1733459934779,0.204365,97864.0,97863.0,0.52177641]
[1733459935189,0.204365,97864.0,97863.0,0.38491563]
[1733459936028,0.204365,97864.0,97863.0,0.52178719]
[1733459936235,0.204365,97864.0,97863.0,0.38491563]
[1733459936842,0.204365,97864.0,97863.0,0.38493037]
[1733459937075,0.204365,97864.0,97863.0,0.56741562]
[1733459937914,0.204365,97864.0,97863.0,0.38493037]
[1733459938235,0.204365,97864.0,97863.0,0.18499904]
[1733459938656,0.204365,97864.0,97863.0,0.38499789]
[1733459939334,0.204365,97864.0,97863.0,0.56748314]
[1733459939770,0.204365,97864.0,97863.0,0.38499789]
[1733459940224,0.204365,97864.0,97863.0,0.56748314]
[1733459941053,0.204365,97864.0,97863.0,0.38499789]
[1733459941282,0.204365,97864.0,97863.0,0.56748314]
[1733459941778,0.204365,97864.0,97863.0,0.56747315]
[1733459942945,0.204365,97864.0,97863.0,0.38496768]
[1733459943152,0.204365,97864.0,97863.0,0.56747315]
[1733459944196,0.204365,97864.0,97863.0,0.04811676]
[1733459945665,0.204356,97868.0,97863.0,0.04811676]
[1733459945901,0.2052183,97870.0,97869.0,0.04811676]
[1733459946089,0.4095713,97870.0,97869.0,0.38492103]
[1733459946755,0.4095713,97870.0,97869.0,0.18493497]
[1733459946964,0.4095713,97870.0,97869.0,0.04811676]
[1733459947170,0.4095713,97870.0,97869.0,0.38492103]
[1733459947438,0.0008653,97870.0,97869.0,0.66212127]
[1733459947648,0.0008653,97870.0,97869.0,0.43402103]
[1733459948234,0.0008653,97870.0,97869.0,0.09721676]
[1733459948631,0.0008653,97870.0,97869.0,0.32521102]
[1733459948957,0.0008653,97870.0,97869.0,0.51362103]
[1733459950962,0.0008653,97870.0,97869.0,0.53662103]
[1733459966094,0.2051952,97880.0,97873.0,0.04811676]
[1733459966295,0.2051952,97880.0,97873.0,0.38387965]
[1733459966525,0.2051952,97880.0,97873.0,0.27549495]
[1733459966891,0.2051952,97880.0,97873.0,0.61125784]
[1733459968585,0.0001343,97874.0,97873.0,0.61125784]
[1733459970426,0.0001343,97874.0,97873.0,0.38387965]
[1733459970835,0.0001343,97874.0,97873.0,0.23020453]
[1733459971147,0.0001343,97874.0,97873.0,0.56629258]
[1733459971595,0.0001343,97874.0,97873.0,0.56629571]
[1733459971931,0.0001343,97874.0,97873.0,0.56630061]
[1733459973143,0.0001343,97874.0,97873.0,0.38420718]
[1733459973346,0.0001343,97874.0,97873.0,0.61182397]
[1733459973555,0.0001343,97874.0,97873.0,0.38420718]
[1733459973915,0.0001343,97874.0,97873.0,0.27573355]
[1733459974074,0.0001343,97874.0,97873.0,0.56629862]
[1733459974281,0.0001343,97874.0,97873.0,0.38420718]
[1733459974601,0.0001343,97874.0,97873.0,0.56629261]
[1733459975001,0.0001343,97874.0,97873.0,0.38420718]
[1733459975248,0.0001343,97874.0,97873.0,0.51223872]
[1733459975658,0.0001343,97874.0,97873.0,0.59103872]
[1733459975830,0.0001343,97874.0,97873.0,0.59092196]
[1733459980284,0.0001343,97874.0,97873.0,0.61093686]
[1733459980691,0.0001343,97874.0,97873.0,0.61092279]
[1733459981119,0.0008632,97880.0,97874.0,0.023]
[1733459981388,0.00094627,97880.0,97879.0,0.07111676]
[1733459981631,0.00094627,97880.0,97879.0,0.40707635]
[1733459982586,0.00094627,97880.0,97879.0,0.38407635]
[1733459982902,0.00094627,97880.0,97879.0,0.56612083]
[1733459985674,0.00094627,97880.0,97879.0,0.38407635]
[1733459989157,0.00094627,97880.0,97879.0,0.61161025]
[1733459990182,0.00094627,97880.0,97879.0,0.38407635]
[1733459995432,0.00094627,97880.0,97879.0,0.38442479]
[1733459996883,0.00094627,97880.0,97879.0,0.40742479]
[1733459997110,0.00094627,97880.0,97879.0,0.40741758]
[1733460007102,0.204309,97891.0,97879.0,0.40741758]
[1733460007103,0.0008651,97910.0,97909.0,0.04811676]
[1733460007556,0.00144593,97910.0,97909.0,0.5666914]
[1733460007770,0.00144593,97910.0,97909.0,0.38442688]
[1733460007984,0.00144593,97910.0,97909.0,0.40742688]
[1733460011458,0.00144593,97910.0,97909.0,0.38442688]
[1733460012340,0.00144593,97910.0,97909.0,0.61178054]
[1733460012556,0.00144593,97910.0,97909.0,0.38442688]
[1733460012986,0.00637789,97910.0,97909.0,0.38442688]
[1733460013198,0.00144593,97910.0,97909.0,0.38375248]
[1733460013398,0.00144593,97910.0,97909.0,0.56560346]
[1733460013611,0.00144593,97910.0,97909.0,0.38375248]
[1733460013612,0.00637789,97910.0,97909.0,0.38375248]
[1733460013780,0.00637789,97910.0,97909.0,0.18448158]
[1733460013999,0.00637789,97910.0,97909.0,0.04811676]
[1733460014203,0.00144593,97910.0,97909.0,0.04811676]
[1733460014963,0.00144593,97910.0,97909.0,0.18448158]
[1733460015166,0.00144593,97910.0,97909.0,0.52002725]
[1733460015620,0.00144593,97910.0,97909.0,0.18448158]
[1733460015820,0.00144593,97910.0,97906.0,0.18181976]
[1733460015821,0.204275,97908.0,97903.0,0.09091505]
[1733460016022,0.0049303,97907.0,97902.0,0.04811676]
[1733460016233,0.0049303,97907.0,97896.0,0.13636482]
[1733460016234,0.204292,97899.0,97898.0,0.04811676]
[1733460016441,0.20921787,97899.0,97898.0,0.04811676]
[1733460016635,0.41351187,97899.0,97898.0,0.04811676]
[1733460017627,0.204304,97893.0,97891.0,0.04811676]
[1733460018043,0.204304,97893.0,97889.0,0.04811676]
[1733460018044,0.204308,97891.0,97889.0,0.04811676]
[1733460018454,0.204308,97891.0,97876.0,0.22742593]
[1733460018455,0.204323,97884.0,97882.0,0.04811676]
[1733460018650,0.204323,97884.0,97875.0,0.18194074]
[1733460018651,0.204336,97878.0,97877.0,0.09097037]
[1733460018962,0.204336,97878.0,97872.0,0.18194074]
[1733460018963,0.20922569,97878.0,97873.0,0.09097037]
[1733460019370,0.204336,97878.0,97873.0,0.09097037]
[1733460019570,0.204336,97878.0,97872.0,0.04811676]
[1733460019571,0.00488824,97877.0,97872.0,0.04811676]
[1733460019772,0.40868,97876.0,97872.0,0.04811676]
[1733460019974,0.41356769,97876.0,97872.0,0.04811676]
[1733460020585,0.41363887,97876.0,97872.0,0.04811676]
[1733460021263,0.20929887,97876.0,97875.0,0.04811676]
[1733460022478,0.00495887,97876.0,97875.0,0.04811676]
[1733460022853,0.204328,97882.0,97881.0,0.04811676]
[1733460023052,0.204316,97888.0,97887.0,0.04811676]
[1733460026743,0.204308,97892.0,97887.0,0.04811676]
[1733460026916,0.204298,97897.0,97896.0,0.04811676]
[1733460027758,0.204298,97897.0,97885.0,0.22742593]
[1733460027759,0.408572,97902.0,97900.0,0.04811676]
[1733460028880,0.204272,97909.0,97908.0,0.04811676]
[1733460029570,0.204272,97909.0,97908.0,0.13916332]
[1733460029775,0.204272,97909.0,97908.0,0.04811676]
[1733460030211,0.20433008,97909.0,97908.0,0.04811676]
[1733460032821,0.20433008,97909.0,97894.0,0.22742593]
[1733460032822,0.28523008,97909.0,97907.0,0.04811676]
[1733460033072,0.28523008,97909.0,97908.0,0.04811676]
[1733460033502,0.20433008,97909.0,97908.0,0.04811676]
[1733460049213,0.20433008,97909.0,97902.0,0.0495]
[1733460049214,0.204281,97904.0,97902.0,0.09108757]
[1733460049601,0.204281,97904.0,97901.0,0.09108757]
[1733460049801,0.204281,97904.0,97900.0,0.09108757]
[1733460049802,0.408562,97904.0,97900.0,0.09108757]
[1733460050206,0.408562,97904.0,97899.0,0.09108757]
[1733460050570,0.408562,97904.0,97901.0,0.09108757]
[1733460050781,0.408562,97904.0,97891.0,0.190841]
[1733460050782,0.408562,97904.0,97902.0,0.09108757]
[1733460050973,0.408562,97904.0,97897.0,0.18217515]
[1733460050974,0.408562,97904.0,97901.0,0.09108757]
[1733460051202,0.204273,97908.0,97897.0,0.09108757]
[1733460051203,0.204285,97902.0,97897.0,0.09108757]
[1733460051500,0.204288,97901.0,97899.0,0.04811676]
[1733460051710,0.204285,97902.0,97899.0,0.04811676]
[1733460051857,0.204288,97901.0,97899.0,0.04811676]
[1733460052226,0.204288,97901.0,97894.0,0.04811676]
[1733460052372,0.204288,97901.0,97883.0,0.30309895]
[1733460052373,0.204302,97894.0,97893.0,0.04811676]
[1733460052993,0.204302,97894.0,97892.0,0.04811676]
[1733460053200,0.408604,97894.0,97891.0,0.04811676]
[1733460053606,0.204302,97894.0,97893.0,0.04811676]
[1733460055839,0.204302,97894.0,97891.0,0.04811676]
[1733460055960,0.204302,97894.0,97893.0,0.04811676]
[1733460056164,0.408604,97894.0,97891.0,0.04811676]
[1733460056777,0.204306,97892.0,97889.0,0.04811676]
[1733460056976,0.204302,97894.0,97888.0,0.13919634]
[1733460057346,0.204293,97899.0,97880.0,0.22942935]
[1733460057347,0.204294,97898.0,97884.0,0.09105761]
[1733460057555,0.07096002,97900.0,97880.0,0.0017304]
[1733460057556,0.204309,97891.0,97883.0,0.04811676]
[1733460057775,0.18813154,97897.0,97883.0,0.04811676]
[1733460057986,0.204321,97885.0,97883.0,0.04811676]
[1733460059029,0.204325,97883.0,97882.0,0.04811676]
[1733460060103,0.40865,97883.0,97880.0,0.04984716]
[1733460060318,0.204325,97883.0,97880.0,0.04984716]
[1733460060554,0.204325,97883.0,97882.0,0.04811676]
[1733460060985,0.204325,97883.0,97880.0,0.0017304]
[1733460061168,0.40865,97883.0,97880.0,0.0017304]
[1733460061418,0.287429,97881.0,97880.0,0.0017304]
[1733460063442,0.204329,97881.0,97880.0,0.0017304]
[1733460065681,0.39246054,97881.0,97880.0,4e-07]
[1733460069836,0.287429,97881.0,97880.0,4e-07]
[1733460071150,0.39246054,97881.0,97880.0,4e-07]
[1733460071643,0.47757099,97881.0,97880.0,4e-07]
[1733460072095,0.39246054,97881.0,97880.0,4e-07]
[1733460076268,0.69896054,97881.0,97880.0,4e-07]
[1733460083736,0.61586054,97881.0,97880.0,4e-07]
[1733460086508,0.66586054,97881.0,97880.0,4e-07]
[1733460086734,0.77143211,97881.0,97880.0,4e-07]
[1733460086937,0.87632703,97881.0,97880.0,4e-07]
[1733460088357,0.92142703,97881.0,97880.0,4e-07]
[1733460088509,0.554348,97872.0,97871.0,0.0001978]
[1733460088709,0.65937954,97872.0,97871.0,0.0001978]
[1733460088934,0.65937954,97872.0,97869.0,0.01]
[1733460088935,0.254352,97870.0,97869.0,2e-07]
[1733460089109,0.35938354,97870.0,97869.0,2e-07]
[1733460089311,0.77077846,97870.0,97869.0,2e-07]
[1733460089504,0.66588354,97870.0,97869.0,2e-07]
[1733460089719,0.66594284,97870.0,97869.0,2e-07]
[1733460091813,0.68686229,97870.0,97869.0,2e-07]
[1733460096294,0.68772799,97870.0,97869.0,2e-07]
[1733460097151,0.63772799,97870.0,97869.0,2e-07]
[1733460097316,0.61680854,97870.0,97869.0,2e-07]
[1733460101862,0.204369,97862.0,97861.0,0.09518514]
[1733460102287,0.204369,97862.0,97861.0,0.23149343]
[1733460102718,0.204369,97862.0,97861.0,0.43225184]
[1733460103129,0.204369,97862.0,97861.0,0.38413508]
[1733460103347,0.204354,97869.0,97868.0,0.04811676]
[1733460103575,0.307425,97870.0,97869.0,0.13041676]
[1733460103787,0.307425,97870.0,97869.0,0.46743112]
[1733460104024,0.307425,97870.0,97869.0,0.35759725]
[1733460104255,0.307425,97870.0,97869.0,0.46743112]
[1733460104708,0.307425,97870.0,97869.0,0.69461161]
[1733460105415,0.307425,97870.0,97869.0,0.46743112]
[1733460105885,0.307425,97870.0,97869.0,0.69571565]
[1733460106979,0.307425,97870.0,97869.0,0.51503112]
[1733460107871,0.204276,97907.0,97889.0,0.04811676]
[1733460108072,0.00093096,97890.0,97889.0,0.17741676]
[1733460108289,0.00093096,97890.0,97889.0,0.51443112]
[1733460108692,0.00093096,97890.0,97889.0,0.61946266]
[1733460110420,0.00093096,97890.0,97889.0,0.8015782]
[1733460110610,0.00093096,97890.0,97889.0,0.69654666]
[1733460110769,0.00093096,97890.0,97889.0,0.51443112]
[1733460111170,0.00093096,97890.0,97889.0,0.17741676]
[1733460114829,0.204327,97882.0,97879.0,0.09107448]
[1733460115077,0.204327,97882.0,97877.0,0.04811676]
[1733460115078,0.204331,97880.0,97877.0,0.04811676]
[1733460115397,0.204338,97877.0,97872.0,0.04811676]
[1733460115634,0.204327,97882.0,97877.0,0.04811676]
[1733460115829,0.00093096,97890.0,97872.0,0.04811676]
[1733460116027,0.204342,97875.0,97874.0,0.04811676]
[1733460116235,0.204342,97875.0,97863.0,0.0493]
[1733460116236,0.204365,97865.0,97863.0,0.0493]
[1733460116754,0.204365,97865.0,97864.0,0.04811676]
[1733460117440,0.204365,97865.0,97860.0,0.0019306]
[1733460117648,0.40873,97865.0,97860.0,0.0019306]
[1733460119647,0.40873,97865.0,97860.0,0.05004736]
[1733460119843,0.40873,97865.0,97860.0,0.0019306]
[1733460120647,0.40873,97865.0,97861.0,0.04811676]
[1733460120818,0.40873,97865.0,97864.0,0.04811676]
[1733460121517,0.40873,97865.0,97861.0,0.04811676]
[1733460121725,0.40873,97865.0,97860.0,0.0019306]
[1733460124167,0.408734,97863.0,97860.0,0.0019306]
[1733460125038,0.54663835,97863.0,97860.0,0.0019306]
[1733460125467,0.204371,97861.0,97860.0,0.0019306]
[1733460125695,0.30940254,97861.0,97860.0,0.0019306]
[1733460127473,0.30940254,97861.0,97860.0,8e-08]
[1733460127474,0.41038578,97861.0,97860.0,8e-08]
[1733460127691,0.41038578,97861.0,97850.0,8e-07]
[1733460127692,0.630392,97851.0,97850.0,8e-07]
[1733460127886,0.73730678,97851.0,97850.0,8e-07]
[1733460128744,0.73542354,97851.0,97850.0,8e-07]
[1733460128921,0.73730678,97851.0,97850.0,8e-07]
[1733460129119,1.04389678,97851.0,97850.0,8.7e-07]
[1733460130275,1.1487917,97851.0,97850.0,8.7e-07]
[1733460130483,1.04389678,97851.0,97850.0,8.7e-07]
[1733460132793,1.04377932,97851.0,97850.0,8.7e-07]
[1733460133700,1.19377932,97851.0,97850.0,8.7e-07]
[1733460135730,1.19189608,97851.0,97850.0,8.7e-07]
[1733460137330,1.06601354,97851.0,97850.0,8.7e-07]
[1733460137536,0.61601354,97851.0,97850.0,8.7e-07]
[1733460139195,0.76601354,97851.0,97850.0,8.7e-07]
[1733460139617,0.61601354,97851.0,97850.0,8.7e-07]
[1733460142172,0.61601354,97851.0,97850.0,0.00173267]
[1733460142362,0.510982,97851.0,97850.0,0.00173267]